[Event "FIDE World Rapid-ch Open 2018"]
[White "Dzhumagaliev, Yan"]
[Black "Perdomo, Carlos Andres"]
[Site "St. Petersburg"]
[Round "3.93"]
[Annotator "NA"]
[Result "1-0"]
[Date "2018.12.26"]
[WhiteElo "2410"]
[BlackElo "2301"]
[PlyCount "132"]
[TimeControl "900+10"]

1. d4 {[%emt 0:0:0]} d5 {[%emt 0:0:0]} 2. c4 {[%emt 0:0:0]} e6 {[%emt 0:0:0]} 3. Nf3 {[%emt 0:0:0]} Be7 {[%emt 0:0:20]} 4. g3 {[%emt 0:0:0]} Nf6 {[%emt 0:0:5]} 5. Bg2 {[%emt 0:0:0]} 0-0 {[%emt 0:0:7]} 6. 0-0 {[%emt 0:0:0]} c6 {[%emt 0:0:35]} 7. Qc2 {[%emt 0:0:6]} b6 {[%emt 0:0:37]} 8. Rd1 {[%emt 0:0:5]} Bb7 {[%emt 0:0:11]} 9. b3 {[%emt 0:0:15]} Na6 {[%emt 0:0:0]} 10. Nc3 {[%emt 0:0:15]} Rc8 {[%emt 0:0:51]} 11. e4 {[%emt 0:0:14]} dxe4 {[%emt 0:0:56]} 12. Nxe4 {[%emt 0:0:11]} Nb4 {[%emt 0:1:9]} 13. Qe2 {[%emt 0:0:17]
} Nxe4 {[%emt 0:2:22]} 14. Qxe4 {[%emt 0:0:2]} Rc7 {[%emt 0:0:0]} 15. Bf4 {[%emt 0:0:47]} Rd7 {[%emt 0:0:23]} 16. Ne5 {[%emt 0:8:26]} c5 {[%emt 0:0:18]} 17. Qe2 {[%emt 0:1:48]} Bxg2 {[%emt 0:0:12]} 18. Nxd7 {[%emt 0:0:3]
} Qxd7 {[%emt 0:0:4]} 19. Kxg2 {[%emt 0:0:24]} cxd4 {[%emt 0:0:0]} 20. a3 {[%emt 0:0:38]} Nc6 {[%emt 0:0:4]} 21. b4 {[%emt 0:0:1]} f6 {[%emt 0:0:22]} 22. Qg4 {[%emt 0:0:44]} f5 {[%emt 0:1:8]} 23. Qf3 {[%emt 0:0:0]} Bf6 {[%emt 0:1:6]} 24. Rac1 {[%emt 0:1:7]} g5 {[%emt 0:0:57]} 25. b5 {[%emt 0:0:1]} Na5 {[%emt 0:0:23]} 26. Bd2 {[%emt 0:0:7]} g4 {[%emt 0:0:0]} 27. Qd3 {[%emt 0:0:9]} Nb7 {[%emt 0:0:5]} 28. Bb4 {[%emt 0:0:4]} Nc5 {[%emt 0:1:44]} 29. Bxc5 {[%emt 0:0:6]} bxc5 {[%emt 0:0:2]} 30. f4 {[%emt 0:0:37]
} h5 {[%emt 0:0:32]} 31. h4 {[%emt 0:0:1]} Qb7+ {[%emt 0:0:0]} 32. Kh2 {[%emt 0:0:1]} Qe4 {[%emt 0:0:39]} 33. Rc2 {[%emt 0:0:1]} Qxd3 {[%emt 0:0:7]} 34. Rxd3 {[%emt 0:0:1]} Kf7 {[%emt 0:0:11]} 35. Re2 {[%emt 0:0:14]
} Re8 {[%emt 0:0:51]} 36. a4 {[%emt 0:0:8]} Be7 {[%emt 0:0:0]} 37. a5 {[%emt 0:0:10]} Bd6 {[%emt 0:0:13]} 38. Rb3 {[%emt 0:0:3]} Rb8 {[%emt 0:0:14]} 39. b6 {[%emt 0:0:38]} a6 {[%emt 0:0:2]} 40. Kg2 {[%emt 0:0:0]} Ke7 {[%emt 0:0:5]} 41. Kf1 {[%emt 0:0:1]} Kd7 {[%emt 0:0:11]} 42. Ke1 {[%emt 0:0:1]} Re8 {[%emt 0:0:3]} 43. Kd2 {[%emt 0:0:5]} Kc6 {[%emt 0:0:19]
} 44. Rb1 {[%emt 0:0:30]} Bb8 {[%emt 0:0:50]} 45. Rbe1 {[%emt 0:0:18]
} Kd7 {[%emt 0:0:1]} 46. Kd3 {[%emt 0:0:11]} Bd6 {[%emt 0:0:0]} 47. Rb1 {[%emt 0:0:51]} Bb8 {[%emt 0:0:8]} 48. Rb3 {[%emt 0:0:17]} Kc6 {[%emt 0:0:17]} 49. b7 {[%emt 0:1:17]} Bc7 {[%emt 0:0:1]} 50. Rb6+ {[%emt 0:0:37]
} Bxb6 {[%emt 0:0:15]} 51. Rxe6+ {[%emt 0:0:1]} Rxe6 {[%emt 0:0:0]} 52. b8=Q {[%emt 0:0:1]} Re3+ {[%emt 0:0:2]} 53. Kc2 {[%emt 0:0:0]
} Bxa5 {[%emt 0:0:19]} 54. Qc8+ {[%emt 0:0:1]} Bc7 {[%emt 0:0:13]} 55. Qxa6+ {[%emt 0:0:23]} Kd7 {[%emt 0:0:12]} 56. Qf6 {[%emt 0:0:7]} Rxg3 {[%emt 0:0:17]
} 57. Qxf5+ {[%emt 0:0:1]} Kc6 {[%emt 0:0:3]} 58. Qd5+ {[%emt 0:0:36]
} Kb6 {[%emt 0:0:3]} 59. f5 {[%emt 0:0:15]} d3+ {[%emt 0:0:0]} 60. Kb3 {[%emt 0:0:9]} d2+ {[%emt 0:0:22]} 61. Ka4 {[%emt 0:0:1]} Bf4 {[%emt 0:0:14]} 62. Qd8+ {[%emt 0:0:20]} Kb7 {[%emt 0:0:8]} 63. f6 {[%emt 0:0:11]
} Rg1 {[%emt 0:0:13]} 64. f7 {[%emt 0:0:16]} d1=Q+ {[%emt 0:0:0]} 65. Qxd1 {[%emt 0:0:10]} Rxd1 66. f8=Q Bd6 1-0

[Event "FIDE World Rapid-ch Open 2018"]
[White "Gurvich, Vitaly"]
[Black "Rashkovsky, Nukhim N"]
[Site "St. Petersburg"]
[Round "3.94"]
[Annotator "ChessBase"]
[Result "1-0"]
[Date "2018.12.26"]
[WhiteElo "2270"]
[BlackElo "2482"]
[PlyCount "91"]
[TimeControl "900+10"]

1. d4 {[%emt 0:0:0]} Nf6 {[%emt 0:0:0]} 2. c4 {[%emt 0:0:0]} e6 {[%emt 0:0:0]} 3. Nf3 {[%emt 0:0:0]} Bb4+ {[%emt 0:0:0]} 4. Bd2 {[%emt 0:0:0]} Qe7 {[%emt 0:0:0]} 5. g3 {[%emt 0:0:0]} Bxd2+ {[%emt 0:0:0]} 6. Qxd2 {[%emt 0:0:1]
} Nc6 {[%emt 0:0:0]} 7. Nc3 {[%emt 0:0:1]} d5 {[%emt 0:0:1]
} 8. Bg2 {[%emt 0:0:4]} dxc4 {[%emt 0:0:1]} 9. Ne5 {[%emt 0:0:1]} Nxe5 {[%emt 0:2:47]
} 10. dxe5 {[%emt 0:0:2]} Nd7 {[%emt 0:0:1]} 11. f4 {[%emt 0:0:0]} Nb6 {[%emt 0:1:6]} 12. 0-0-0 {[%emt 0:0:52]} Bd7 {[%emt 0:0:43]} 13. Bxb7 {[%emt 0:0:57]} Rb8 {[%emt 0:0:1]} 14. Bf3 {[%emt 0:0:23]} 0-0 {[%emt 0:0:19]
} 15. Qc2 {[%emt 0:2:1]} Qb4 {[%emt 0:0:23]} 16. Rd4 {[%emt 0:0:0]} c5 {[%emt 0:3:11]} 17. Rd6 {[%emt 0:0:14]} Ba4 {[%emt 0:0:5]} 18. Qd2 {[%emt 0:0:43]} Qa5 {[%emt 0:0:28]} 19. Ne4 {[%emt 0:4:20]} Qb5 {[%emt 0:0:13]
} 20. Nc3 {[%emt 0:1:51]} Qa5 {[%emt 0:0:10]} 21. Ne4 {[%emt 0:0:0]} Qb5 {[%emt 0:0:1]} 22. Nc3 {[%emt 0:0:1]} Qa6 {[%emt 0:0:16]} 23. g4 {[%emt 0:2:5]} Qa5 {[%emt 0:1:1]} 24. Ne4 {[%emt 0:1:25]} Qb5 {[%emt 0:0:0]} 25. Nc3 {[%emt 0:0:26]} Qb4 {[%emt 0:0:11]} 26. f5 {[%emt 0:0:27]} Kh8 {[%emt 0:4:5]} 27. f6 {[%emt 0:0:13]} Rg8 {[%emt 0:0:30]} 28. fxg7+ {[%emt 0:1:8]
} Rxg7 {[%emt 0:0:1]} 29. Rd8+ {[%emt 0:0:5]} Rg8 {[%emt 0:0:0]} 30. Rxg8+ {[%emt 0:0:3]} Rxg8 31. a3 {[%emt 0:0:29]} Qa5 {[%emt 0:0:0]} 32. Qf4 {[%emt 0:0:7]} Rg7 {[%emt 0:0:17]} 33. Nxa4 {[%emt 0:0:14]} Nxa4 {[%emt 0:0:4]} 34. Qxc4 {[%emt 0:0:7]} Nb6 {[%emt 0:0:6]} 35. Qd3 {[%emt 0:0:7]
} Rg8 {[%emt 0:0:17]} 36. Rd1 {[%emt 0:0:14]} c4 {[%emt 0:0:0]} 37. Qc3 {[%emt 0:0:7]} Qc5 {[%emt 0:0:7]} 38. Qd4 {[%emt 0:0:12]} Qa5 {[%emt 0:0:14]} 39. Qf4 {[%emt 0:0:4]} Rf8 {[%emt 0:0:26]} 40. Qf6+ {[%emt 0:0:5]
} Kg8 {[%emt 0:0:0]} 41. Qg5+ {[%emt 0:0:1]} Kh8 {[%emt 0:0:0]} 42. Qf6+ {[%emt 0:0:22]} Kg8 {[%emt 0:0:0]} 43. Be4 {[%emt 0:0:20]} Nd5 {[%emt 0:1:42]} 44. Qh6 {[%emt 0:0:5]} f5 {[%emt 0:0:13]} 45. Qxe6+ {[%emt 0:0:3]
} Kh8 {[%emt 0:0:5]} 46. Qxd5 {[%emt 0:0:10]} 1-0

[Event "FIDE World Rapid-ch Open 2018"]
[White "Mamatov, Melis"]
[Black "Sanikidze, Tornike"]
[Site "St. Petersburg"]
[Round "3.95"]
[Annotator "ChessBase"]
[Result "0-1"]
[Date "2018.12.26"]
[WhiteElo "2223"]
[BlackElo "2507"]
[PlyCount "88"]
[TimeControl "900+10"]

1. e4 {[%emt 0:0:0]} d6 {[%emt 0:0:10]} 2. d4 {[%emt 0:0:0]} g6 {[%emt 0:0:0]} 3. Nc3 {[%emt 0:0:0]} Bg7 {[%emt 0:0:1]} 4. f4 {[%emt 0:0:0]} Nc6 {[%emt 0:0:1]} 5. Nf3 {[%emt 0:0:0]} Bg4 {[%emt 0:0:1]} 6. Be3 {[%emt 0:0:0]} Bxf3 {[%emt 0:0:1]} 7. gxf3 {[%emt 0:0:5]} e6 {[%emt 0:0:2]} 8. Qd2 {[%emt 0:0:49]} d5 {[%emt 0:0:39]} 9. 0-0-0 {[%emt 0:1:35]} Nge7 {[%emt 0:0:20]
} 10. Bh3 {[%emt 0:0:32]} Qd6 {[%emt 0:1:5]} 11. Rhg1 {[%emt 0:1:10]
} a6 {[%emt 0:0:24]} 12. f5 {[%emt 0:0:11]} exf5 {[%emt 0:0:0]} 13. exf5 {[%emt 0:0:28]} 0-0 {[%emt 0:0:3]} 14. Bf4 {[%emt 0:1:44]} Qb4 {[%emt 0:0:2]} 15. Ne2 {[%emt 0:1:59]} Qb6 {[%emt 0:1:29]} 16. Bh6 {[%emt 0:0:21]
} Nd8 {[%emt 0:0:24]} 17. Bxg7 {[%emt 0:1:10]} Kxg7 {[%emt 0:0:0]} 18. Ng3 {[%emt 0:0:56]} Kh8 {[%emt 0:0:13]} 19. Rde1 {[%emt 0:0:52]} Ng8 {[%emt 0:0:8]} 20. f4 {[%emt 0:1:38]} Nc6 {[%emt 0:0:58]} 21. c3 {[%emt 0:0:31]
} Nce7 {[%emt 0:1:55]} 22. fxg6 {[%emt 0:0:27]} fxg6 {[%emt 0:0:0]} 23. Re6 {[%emt 0:0:0]} c6 {[%emt 0:0:1]} 24. f5 {[%emt 0:0:30]} Qc7 {[%emt 0:0:1]} 25. Qg5 {[%emt 0:1:31]} gxf5 {[%emt 0:1:32]} 26. Nh5 {[%emt 0:1:35]
} Rf7 {[%emt 0:0:1]} 27. Rge1 {[%emt 0:0:33]} Qxh2 {[%emt 0:0:0]} 28. Nf4 {[%emt 0:0:17]} Rg7 {[%emt 0:0:15]} 29. R6e2 {[%emt 0:0:17]} Qxe2 {[%emt 0:0:21]} 30. Qxg7+ {[%emt 0:0:3]} Kxg7 {[%emt 0:0:2]} 31. Rxe2 {[%emt 0:0:2]} Kf6 {[%emt 0:0:15]} 32. Rg2 {[%emt 0:0:7]} Kf7 {[%emt 0:0:0]} 33. Nd3 {[%emt 0:0:25]} Nf6 {[%emt 0:0:12]} 34. Rf2 {[%emt 0:0:14]} Ne4 {[%emt 0:0:33]} 35. Rf1 {[%emt 0:0:9]} Kf6 {[%emt 0:0:11]} 36. Ne5 {[%emt 0:0:6]
} Rg8 {[%emt 0:0:11]} 37. Ng4+ {[%emt 0:0:15]} Ke6 {[%emt 0:0:0]} 38. Ne3 {[%emt 0:0:10]} Rg5 {[%emt 0:0:38]} 39. Kc2 {[%emt 0:0:8]} h5 {[%emt 0:0:23]} 40. a4 {[%emt 0:0:9]} Nd6 {[%emt 0:0:13]} 41. Re1 {[%emt 0:0:0]} Kf6 {[%emt 0:0:0]} 42. Kb3 {[%emt 0:0:5]} Rg3 {[%emt 0:0:15]} 43. Bf1 {[%emt 0:0:13]} f4 {[%emt 0:0:17]} 44. Ng2 {[%emt 0:0:7]} Ng6 {[%emt 0:0:0]} 0-1

[Event "FIDE World Rapid-ch Open 2018"]
[White "Belyakov, Bogdan"]
[Black "Makoveev, Ilya"]
[Site "St. Petersburg"]
[Round "3.96"]
[Annotator "ChessBase"]
[Result "0-1"]
[Date "2018.12.26"]
[WhiteElo "2459"]
[BlackElo "2257"]
[PlyCount "96"]
[TimeControl "900+10"]

1. e4 {[%emt 0:0:0]} c5 {[%emt 0:0:0]} 2. c3 {[%emt 0:0:0]} d5 {[%emt 0:0:0]} 3. exd5 {[%emt 0:0:0]} Qxd5 {[%emt 0:0:0]} 4. d4 {[%emt 0:0:0]} Nf6 {[%emt 0:0:2]} 5. Nf3 {[%emt 0:0:4]} Bf5 {[%emt 0:0:33]} 6. Be2 {[%emt 0:1:27]
} e6 {[%emt 0:0:2]} 7. 0-0 {[%emt 0:0:27]} Nc6 {[%emt 0:0:23]
} 8. Be3 {[%emt 0:0:43]} cxd4 {[%emt 0:4:12]} 9. cxd4 {[%emt 0:0:5]} Be7 {[%emt 0:0:6]
} 10. Nc3 {[%emt 0:0:3]} Qd6 {[%emt 0:0:31]} 11. Qb3 {[%emt 0:0:0]} 0-0 {[%emt 0:0:22]} 12. Rfd1 {[%emt 0:0:4]} Rfd8 {[%emt 0:4:17]} 13. Rac1 {[%emt 0:0:4]} Ng4 {[%emt 0:1:23]} 14. Qxb7 {[%emt 0:4:9]} Rab8 {[%emt 0:0:45]
} 15. Qa6 {[%emt 0:0:6]} Rb6 {[%emt 0:0:37]} 16. Nb5 {[%emt 0:0:0]} Qb4 {[%emt 0:2:8]} 17. Qa3 {[%emt 0:0:46]} Qxa3 {[%emt 0:0:49]} 18. bxa3 {[%emt 0:1:0]} a6 {[%emt 0:0:18]} 19. Nc7 {[%emt 0:3:59]} Nxe3 {[%emt 0:0:22]
} 20. fxe3 {[%emt 0:0:5]} Bxa3 {[%emt 0:0:2]} 21. Rc3 {[%emt 0:0:27]
} Bb4 {[%emt 0:0:10]} 22. Rcc1 {[%emt 0:0:19]} Ba3 {[%emt 0:0:0]} 23. Rc4 {[%emt 0:1:11]} Rc8 {[%emt 0:1:12]} 24. Nxa6 {[%emt 0:0:28]} Rxa6 {[%emt 0:0:6]} 25. Rc3 {[%emt 0:0:1]} Raa8 {[%emt 0:0:9]} 26. Bd3 {[%emt 0:0:34]
} Bb4 {[%emt 0:0:6]} 27. Rb3 {[%emt 0:0:9]} Bxd3 {[%emt 0:0:0]} 28. Rdxd3 {[%emt 0:0:2]} Rxa2 {[%emt 0:0:3]} 29. Rd1 {[%emt 0:0:2]} Ra3 {[%emt 0:0:6]} 30. Rxa3 {[%emt 0:0:16]} Bxa3 {[%emt 0:0:1]} 31. Kf2 {[%emt 0:0:3]
} Kf8 {[%emt 0:0:16]} 32. g4 {[%emt 0:0:3]} Ke7 {[%emt 0:0:0]} 33. h4 {[%emt 0:0:2]} Bd6 {[%emt 0:0:3]} 34. Ra1 {[%emt 0:0:7]} Nb4 {[%emt 0:0:9]} 35. Ra7+ {[%emt 0:0:12]} Rc7 {[%emt 0:0:2]} 36. Ra8 {[%emt 0:0:2]
} Rc2+ {[%emt 0:0:5]} 37. Kf1 {[%emt 0:0:9]} Nd5 {[%emt 0:0:0]} 38. Ra7+ {[%emt 0:0:6]} Kf6 {[%emt 0:0:11]} 39. e4 {[%emt 0:0:7]} Ne3+ {[%emt 0:0:2]} 40. Kg1 {[%emt 0:0:3]} Rc1+ {[%emt 0:0:29]} 41. Kf2 {[%emt 0:0:9]
} Nxg4+ {[%emt 0:0:2]} 42. Ke2 {[%emt 0:0:6]} Bf4 {[%emt 0:0:0]} 43. h5 {[%emt 0:0:12]} g6 {[%emt 0:0:19]} 44. e5+ {[%emt 0:0:23]} Kg7 {[%emt 0:0:5]} 45. d5 {[%emt 0:0:3]} exd5 {[%emt 0:0:3]} 46. e6 {[%emt 0:0:5]
} Rc7 {[%emt 0:0:3]} 47. e7 {[%emt 0:0:42]} Nf6 {[%emt 0:0:0]} 48. h6+ {[%emt 0:0:34]} Kxh6 {[%emt 0:0:6]} 0-1

[Event "FIDE World Rapid-ch Open 2018"]
[White "Zakhartsov, Vladimir"]
[Black "Masrahi, Abdulrahman A"]
[Site "St. Petersburg"]
[Round "3.97"]
[Annotator "ChessBase"]
[Result "1-0"]
[Date "2018.12.26"]
[WhiteElo "2486"]
[BlackElo "1903"]
[PlyCount "77"]
[TimeControl "900+10"]

1. e4 {[%emt 0:0:0]} e5 {[%emt 0:0:0]} 2. Nf3 {[%emt 0:0:0]} Nc6 {[%emt 0:0:0]
} 3. Bb5 {[%emt 0:0:0]} a6 {[%emt 0:0:0]} 4. Bxc6 {[%emt 0:0:0]} dxc6 {[%emt 0:0:0]} 5. 0-0 {[%emt 0:0:0]} Ne7 {[%emt 0:0:0]} 6. Nc3 {[%emt 0:0:6]} Ng6 {[%emt 0:0:18]} 7. d4 {[%emt 0:0:2]} exd4 {[%emt 0:0:0]} 8. Nxd4 {[%emt 0:0:8]} c5 {[%emt 0:1:29]} 9. Nde2 {[%emt 0:0:1]} Qxd1 {[%emt 0:0:4]} 10. Rxd1 {[%emt 0:0:1]} Bd7 {[%emt 0:0:12]} 11. Be3 {[%emt 0:0:6]
} 0-0-0 {[%emt 0:0:20]} 12. Rd2 {[%emt 0:0:1]} Bd6 {[%emt 0:0:0]} 13. Rad1 {[%emt 0:0:7]} Ne5 {[%emt 0:0:26]} 14. b3 {[%emt 0:0:2]} Ng4 {[%emt 0:0:15]} 15. Bf4 {[%emt 0:0:2]} Be5 {[%emt 0:1:34]} 16. Nd5 {[%emt 0:0:18]
} Rhe8 {[%emt 0:0:20]} 17. f3 {[%emt 0:0:6]} Nf6 {[%emt 0:0:0]} 18. Bxe5 {[%emt 0:0:20]} Rxe5 {[%emt 0:0:2]} 19. Nxf6 {[%emt 0:0:5]} gxf6 {[%emt 0:0:3]} 20. Nf4 {[%emt 0:0:1]} c6 {[%emt 0:1:41]} 21. Nd3 {[%emt 0:0:9]
} Rh5 {[%emt 0:0:39]} 22. g4 {[%emt 0:0:1]} Rg8 {[%emt 0:0:0]} 23. Nf4 {[%emt 0:0:16]} Bxg4 {[%emt 0:0:11]} 24. Nxh5 {[%emt 0:0:12]} Bxh5+ {[%emt 0:0:6]} 25. Kf2 {[%emt 0:0:9]} Bg6 {[%emt 0:0:57]} 26. Rd7 {[%emt 0:0:12]
} Re8 {[%emt 0:0:3]} 27. c4 {[%emt 0:0:9]} h6 {[%emt 0:1:30]
} 28. h4 {[%emt 0:0:2]} h5 {[%emt 0:0:4]} 29. a4 {[%emt 0:0:7]} a5 {[%emt 0:0:4]
} 30. R1d2 {[%emt 0:0:2]} b6 {[%emt 0:1:39]} 31. Ra7 {[%emt 0:0:0]} Re6 {[%emt 0:0:29]} 32. Ra8+ {[%emt 0:0:36]} Kb7 {[%emt 0:0:24]} 33. Rad8 {[%emt 0:0:7]} Re7 {[%emt 0:0:10]} 34. R2d7+ {[%emt 0:0:4]} Rxd7 {[%emt 0:0:1]
} 35. Rxd7+ {[%emt 0:0:1]} Kc8 {[%emt 0:0:11]} 36. Re7 {[%emt 0:0:5]
} f5 {[%emt 0:0:43]} 37. Ke3 {[%emt 0:0:2]} fxe4 {[%emt 0:0:0]} 38. fxe4 {[%emt 0:0:3]} f5 {[%emt 0:0:24]} 39. Re6 {[%emt 0:0:2]} 1-0

[Event "FIDE World Rapid-ch Open 2018"]
[White "Carlsson, Pontus"]
[Black "Al Thebaiti, Ahmed M"]
[Site "St. Petersburg"]
[Round "3.98"]
[Annotator "ChessBase"]
[Result "1-0"]
[Date "2018.12.26"]
[WhiteElo "2463"]
[BlackElo "1976"]
[PlyCount "45"]
[TimeControl "900+10"]

1. e4 {[%emt 0:0:0]} c6 {[%emt 0:0:0]} 2. d4 {[%emt 0:0:0]} d5 {[%emt 0:0:0]} 3. e5 {[%emt 0:0:0]} Bf5 {[%emt 0:0:0]} 4. h4 {[%emt 0:0:0]} h5 {[%emt 0:0:5]
} 5. Bd3 {[%emt 0:0:2]} Bxd3 {[%emt 0:0:9]} 6. Qxd3 {[%emt 0:0:0]} e6 {[%emt 0:0:6]} 7. Bg5 {[%emt 0:0:2]} Qb6 {[%emt 0:0:13]} 8. Nd2 {[%emt 0:0:2]} Nd7 {[%emt 0:0:14]} 9. Ngf3 {[%emt 0:0:36]} Ne7 {[%emt 0:0:0]} 10. c4 {[%emt 0:0:12]} Qa6 {[%emt 0:0:9]} 11. 0-0 {[%emt 0:0:47]} Nb6 {[%emt 0:0:27]} 12. b3 {[%emt 0:0:4]} Nf5 {[%emt 0:0:35]} 13. a4 {[%emt 0:0:0]} c5 {[%emt 0:3:52]} 14. a5 {[%emt 0:0:12]} Nd7 {[%emt 0:0:7]} 15. Qc2 {[%emt 0:3:6]} dxc4 {[%emt 0:4:23]} 16. d5 {[%emt 0:0:2]} cxb3 {[%emt 0:0:59]
} 17. Nxb3 {[%emt 0:0:4]} Be7 {[%emt 0:1:24]} 18. Bxe7 {[%emt 0:0:11]
} Nxe7 {[%emt 0:0:13]} 19. dxe6 {[%emt 0:2:53]} Qxe6 {[%emt 0:0:0]} 20. Rad1 {[%emt 0:0:16]} Rd8 {[%emt 0:2:28]} 21. Nxc5 {[%emt 0:1:48]
} Qc6 {[%emt 0:0:49]} 22. e6 {[%emt 0:0:6]} fxe6 {[%emt 0:0:55]} 23. Rxd7 {[%emt 0:0:3]
} 1-0

[Event "FIDE World Rapid-ch Open 2018"]
[White "Apryshko, Gleb"]
[Black "khayat, Abdullah F"]
[Site "St. Petersburg"]
[Round "3.99"]
[Annotator "NA"]
[Result "1/2-1/2"]
[Date "2018.12.26"]
[WhiteElo "2385"]
[BlackElo "1723"]
[PlyCount "67"]
[TimeControl "900+10"]

1. e4 {[%emt 0:0:0]} d5 {[%emt 0:0:1]} 2. d3 {[%emt 0:0:11]} dxe4 {[%emt 0:0:36]
} 3. dxe4 {[%emt 0:0:1]} Qxd1+ {[%emt 0:0:10]} 4. Kxd1 {[%emt 0:0:2]
} e5 {[%emt 0:0:3]} 5. c3 {[%emt 0:0:16]} Nf6 {[%emt 0:0:7]} 6. f3 {[%emt 0:0:3]} Bc5 {[%emt 0:0:8]} 7. Nd2 {[%emt 0:0:41]} a6 {[%emt 0:0:32]
} 8. a4 {[%emt 0:0:10]} Be6 {[%emt 0:0:19]} 9. Bc4 {[%emt 0:0:0]} Bxc4 {[%emt 0:0:36]} 10. Nxc4 {[%emt 0:0:2]} Nc6 {[%emt 0:1:9]} 11. Ke2 {[%emt 0:0:18]} 0-0 {[%emt 0:0:5]} 12. a5 {[%emt 0:0:46]} h6 {[%emt 0:0:0]} 13. Nh3 {[%emt 0:0:34]} Rfd8 {[%emt 0:0:38]} 14. Nf2 {[%emt 0:0:1]} Bxf2 {[%emt 0:1:58]} 15. Kxf2 {[%emt 0:0:2]} Nd7 {[%emt 0:0:19]} 16. Be3 {[%emt 0:0:23]
} f6 {[%emt 0:0:9]} 17. g3 {[%emt 0:0:52]} Nf8 {[%emt 0:0:54]
} 18. f4 {[%emt 0:0:44]} Rd7 {[%emt 0:0:34]} 19. f5 {[%emt 0:0:15]} Rad8 {[%emt 0:0:29]
} 20. g4 {[%emt 0:0:5]} Kf7 {[%emt 0:0:34]} 21. h4 {[%emt 0:0:0]} Rd3 {[%emt 0:2:48]} 22. g5 {[%emt 0:0:28]} fxg5 {[%emt 0:1:21]} 23. hxg5 {[%emt 0:0:2]} hxg5 {[%emt 0:0:11]} 24. Bxg5 {[%emt 0:0:33]} R8d7 {[%emt 0:0:22]
} 25. Ke2 {[%emt 0:0:52]} Rg3 {[%emt 0:0:45]} 26. Be3 {[%emt 0:0:0]} Rg2+ {[%emt 0:0:42]} 27. Bf2 {[%emt 0:0:10]} Kf6 {[%emt 0:2:29]} 28. Kf3 {[%emt 0:0:20]} Rxf2+ {[%emt 0:0:16]} 29. Kxf2 {[%emt 0:0:1]} Na7 {[%emt 0:0:6]
} 30. Rad1 {[%emt 0:0:5]} Nb5 {[%emt 0:0:8]} 31. Ne3 {[%emt 0:0:10]
} Nd6 {[%emt 0:0:10]} 32. Kf3 {[%emt 0:0:1]} Nf7 {[%emt 0:0:0]} 33. Nd5+ {[%emt 0:0:4]} Kg5 {[%emt 0:0:9]} 34. Rdg1# {[%emt 0:0:2]
Kxf5 exf5} 1/2-1/2

[Event "FIDE World Rapid-ch Open 2018"]
[White "Tissir, Mohamed"]
[Black "Al Turky, Fahad A"]
[Site "St. Petersburg"]
[Round "3.100"]
[Annotator "NA"]
[Result "1-0"]
[Date "2018.12.26"]
[WhiteElo "2387"]
[BlackElo "1836"]
[PlyCount "47"]
[TimeControl "900+10"]

1. e4 {[%emt 0:0:0]} d6 {[%emt 0:0:0]} 2. d4 {[%emt 0:0:0]} Nf6 {[%emt 0:0:0]} 3. Nc3 {[%emt 0:0:0]} g6 {[%emt 0:1:7]} 4. Nf3 {[%emt 0:0:0]} Bg7 {[%emt 0:0:9]} 5. Be3 {[%emt 0:0:9]} c6 {[%emt 0:1:33]} 6. h3 {[%emt 0:0:0]} Nbd7 {[%emt 0:1:2]} 7. Qd2 {[%emt 0:2:21]} Qa5 {[%emt 0:1:35]} 8. Bd3 {[%emt 0:0:9]} e5 {[%emt 0:1:40]} 9. 0-0 {[%emt 0:0:3]} 0-0 {[%emt 0:0:0]} 10. Rae1 {[%emt 0:0:1]} exd4 {[%emt 0:2:3]} 11. Nxd4 Ne5 {[%emt 0:0:0]} 12. f4 {[%emt 0:0:33]} Nxd3 {[%emt 0:0:20]} 13. cxd3 {[%emt 0:0:2]} Ne8 {[%emt 0:1:35]} 14. f5 {[%emt 0:0:4]} d5 {[%emt 0:2:25]} 15. Nb3 {[%emt 0:2:41]
} Qd8 {[%emt 0:0:7]} 16. Bc5 {[%emt 0:0:2]} Nd6 {[%emt 0:0:0]} 17. Qf4 {[%emt 0:2:10]} Ne8 {[%emt 0:2:12]} 18. Bxf8 {[%emt 0:0:10]} Bxf8 {[%emt 0:0:7]} 19. fxg6 {[%emt 0:0:4]} f6 {[%emt 0:0:38]} 20. exd5 {[%emt 0:3:0]
} cxd5 {[%emt 0:0:6]} 21. Nxd5 {[%emt 0:0:19]} Qxd5 {[%emt 0:0:0]} 22. Rxe8 {[%emt 0:0:34]} Kg7 {[%emt 0:0:11]} 23. Qxf6+ {[%emt 0:0:0]} Kh6 {[%emt 0:0:2]} 24. g7+ {[%emt 0:0:19]} 1-0

[Event "FIDE World Rapid-ch Open 2018"]
[White "Bilguun, Sumiya"]
[Black "Alsulaymi, Abdullah M"]
[Site "St. Petersburg"]
[Round "3.101"]
[Annotator "ChessBase"]
[Result "1-0"]
[Date "2018.12.26"]
[WhiteElo "2497"]
[BlackElo "1833"]
[PlyCount "47"]
[TimeControl "900+10"]

1. e4 {[%emt 0:0:0]} e5 {[%emt 0:0:0]} 2. Nf3 {[%emt 0:0:0]} Nf6 {[%emt 0:0:0]
} 3. Nc3 {[%emt 0:0:3]} Nc6 {[%emt 0:0:0]} 4. Bb5 {[%emt 0:0:0]} Nd4 {[%emt 0:0:24]} 5. Bc4 {[%emt 0:0:18]} d6 {[%emt 0:0:37]} 6. h3 {[%emt 0:0:47]} Be6 {[%emt 0:2:59]} 7. d3 {[%emt 0:0:12]} h6 {[%emt 0:0:59]
} 8. Be3 {[%emt 0:0:51]} c5 {[%emt 0:1:39]} 9. a4 {[%emt 0:0:55]} Bxc4 {[%emt 0:1:54]
} 10. dxc4 {[%emt 0:0:11]} Qb6 {[%emt 0:1:0]} 11. Ra2 {[%emt 0:1:2]
} Qb4 {[%emt 0:1:14]} 12. Nd2 {[%emt 0:0:10]} Be7 {[%emt 0:0:0]} 13. 0-0 {[%emt 0:1:5]} 0-0 {[%emt 0:0:12]} 14. a5 {[%emt 0:2:17]} b5 {[%emt 0:1:1]
} 15. Nd5 {[%emt 0:0:30]} Nxd5 {[%emt 0:0:6]} 16. cxd5 {[%emt 0:0:6]
} c4 {[%emt 0:2:1]} 17. c3 {[%emt 0:0:4]} Qc5 {[%emt 0:0:3]
} 18. b4 {[%emt 0:0:9]} cxb3 {[%emt 0:0:29]} 19. cxd4 {[%emt 0:0:2]} exd4 {[%emt 0:0:20]} 20. Nxb3 {[%emt 0:0:4]} dxe3 {[%emt 0:1:3]} 21. Nxc5 {[%emt 0:0:6]
} exf2+ {[%emt 0:0:2]} 22. Raxf2 {[%emt 0:0:6]} dxc5 {[%emt 0:0:3]
} 23. d6 {[%emt 0:0:9]} Bg5 {[%emt 0:0:39]} 24. Rf3 {[%emt 0:0:0]} 1-0

[Event "FIDE World Rapid-ch Open 2018"]
[White "Kabanov, Nikolai"]
[Black "Ahmed Hassan Abdillahi"]
[Site "St. Petersburg"]
[Round "3.102"]
[Annotator "ChessBase"]
[Result "1-0"]
[Date "2018.12.26"]
[WhiteElo "2450"]
[BlackElo "1570"]
[PlyCount "31"]
[TimeControl "900+10"]

1. e4 {[%emt 0:0:0]} c5 {[%emt 0:2:0]} 2. Nf3 {[%emt 0:0:0]} g6 {[%emt 0:0:0]} 3. c3 {[%emt 0:0:6]} Nc6 {[%emt 0:0:9]} 4. d4 {[%emt 0:0:12]} cxd4 {[%emt 0:0:9]} 5. cxd4 {[%emt 0:0:3]} e6 {[%emt 0:0:10]} 6. d5 {[%emt 0:0:0]} exd5 {[%emt 0:0:20]} 7. exd5 {[%emt 0:0:2]} Qa5+ {[%emt 0:0:22]} 8. Nc3 {[%emt 0:0:47]} Nce7 {[%emt 0:1:19]} 9. Qd4 {[%emt 0:0:42]} Nf6 {[%emt 0:0:7]
} 10. Qxf6 {[%emt 0:0:11]} Rg8 {[%emt 0:0:7]} 11. d6 {[%emt 0:0:0]} Nf5 {[%emt 0:0:4]} 12. Bc4 {[%emt 0:0:35]} Nxd6 {[%emt 0:0:24]} 13. 0-0 {[%emt 0:0:13]} Qd8 {[%emt 0:1:0]} 14. Re1+ {[%emt 0:0:14]} Be7 {[%emt 0:0:2]
} 15. Qxd6 {[%emt 0:0:7]} Kf8 {[%emt 0:0:17]} 16. Bh6+ {[%emt 0:0:4]
} 1-0